bitfinex/quotes_BTCUSD_20250614
["timestamp","ask_amount","ask_price","bid_price","bid_amount"]
[1749931713018,0.87134017,104600.0,104590.0,0.04997362]
[1749931713226,0.87122018,104600.0,104590.0,0.04997362]
[1749931713435,0.87122022,104600.0,104590.0,0.04997362]
[1749931713665,0.86455625,104600.0,104590.0,0.04997362]
[1749931714097,1.00056945,104600.0,104590.0,0.01797362]
[1749931714316,1.00056934,104600.0,104590.0,0.01797362]
[1749931714534,0.99390547,104600.0,104590.0,0.01797362]
[1749931714748,0.96736946,104600.0,104590.0,0.01797362]
[1749931714980,0.86455625,104600.0,104590.0,0.01797362]
[1749931715438,0.87122023,104600.0,104590.0,0.01797362]
[1749931715691,0.86455625,104600.0,104590.0,0.01797362]
[1749931715928,0.87121993,104600.0,104590.0,0.04797362]
[1749931716148,0.87109993,104600.0,104590.0,0.04797362]
[1749931716361,0.71029985,104600.0,104590.0,0.04797362]
[1749931716574,0.87109985,104600.0,104590.0,0.04797362]
[1749931716788,0.86443625,104600.0,104590.0,0.04797362]
[1749931717222,0.87109994,104600.0,104590.0,0.04797362]
[1749931717643,0.96724933,104600.0,104590.0,0.04797362]
[1749931717856,0.96058547,104600.0,104590.0,0.04797362]
[1749931718070,1.46957277,104600.0,104590.0,0.00596776]
[1749931718282,1.47623641,104600.0,104590.0,0.00596776]
[1749931718492,1.38008719,104600.0,104590.0,0.00596776]
[1749931718703,1.43684207,104600.0,104590.0,0.00596776]
[1749931718913,1.43684218,104600.0,104590.0,0.00596776]
[1749931719127,1.47988216,104600.0,104590.0,0.00596776]
[1749931719412,1.47988214,104600.0,104590.0,0.00596776]
[1749931719613,1.47988215,104600.0,104590.0,0.00596776]
[1749931719818,1.47988216,104600.0,104590.0,0.00596776]
[1749931720036,1.27604216,104600.0,104590.0,0.00596776]
[1749931720243,1.47988214,104600.0,104590.0,0.00596776]
[1749931720457,1.57603136,104600.0,104590.0,0.00596776]
[1749931720684,1.5693679,104600.0,104590.0,0.00596776]
[1749931720919,1.57601967,104600.0,104590.0,0.00596776]
[1749931721459,1.57601966,104600.0,104590.0,0.00596776]
[1749931721693,1.5693679,104600.0,104590.0,0.00596776]
[1749931722547,1.57601921,104600.0,104590.0,0.00596776]
[1749931722750,1.57601948,104600.0,104590.0,0.00596776]
[1749931722965,1.5693679,104600.0,104590.0,0.00596776]
[1749931723174,1.57601955,104600.0,104590.0,0.00596776]
[1749931723601,1.34978898,104600.0,104590.0,0.00596776]
[1749931723747,1.3892756,104600.0,104590.0,0.00596776]
[1749931723955,1.38927558,104600.0,104590.0,0.00596776]
[1749931724365,1.29312639,104600.0,104590.0,0.00596776]
[1749931724577,1.29312639,104600.0,104580.0,0.03]
[1749931724578,0.23532468,104590.0,104580.0,0.03]
[1749931724938,0.23532468,104590.0,104580.0,0.03013723]
[1749931724939,0.52987707,104590.0,104580.0,0.03013723]
[1749931725175,0.59337707,104590.0,104580.0,0.00013723]
[1749931725405,0.59337707,104590.0,104560.0,0.0641]
[1749931725406,0.19128836,104570.0,104560.0,0.0641]
[1749931725626,0.81643327,104570.0,104560.0,0.0641]
[1749931726060,0.82308348,104570.0,104560.0,0.0641]
[1749931726504,0.82308319,104570.0,104560.0,0.0641]
[1749931726718,0.82308328,104570.0,104560.0,0.0641]
[1749931726935,0.66356328,104570.0,104560.0,0.0651]
[1749931727157,0.81747327,104570.0,104560.0,0.07161]
[1749931727369,0.62853012,104570.0,104560.0,0.0651]
[1749931727579,0.82424329,104570.0,104560.0,0.0651]
[1749931727782,0.81759327,104570.0,104560.0,0.0651]
[1749931727988,0.82424333,104570.0,104560.0,0.0651]
[1749931728192,0.66356333,104570.0,104560.0,0.0651]
[1749931728421,0.82963369,104570.0,104560.0,0.0651]
[1749931728611,0.82298363,104570.0,104560.0,0.0651]
[1749931728829,0.85780704,104570.0,104560.0,0.0651]
[1749931729249,0.85777871,104570.0,104560.0,0.0651]
[1749931729459,0.85777883,104570.0,104560.0,0.0651]
[1749931729668,0.85777885,104570.0,104560.0,0.0651]
[1749931729870,0.85111698,104570.0,104560.0,0.0651]
[1749931730078,0.85777885,104570.0,104560.0,0.0651]
[1749931730718,0.95392807,104570.0,104560.0,0.0651]
[1749931731754,0.99708807,104570.0,104560.0,0.0651]
[1749931732440,0.9903862,104570.0,104560.0,0.0651]
[1749931733606,0.99704813,104570.0,104560.0,0.0651]
[1749931733814,0.99704812,104570.0,104560.0,0.0651]
[1749931734015,0.9903862,104570.0,104560.0,0.0651]
[1749931734233,0.99704809,104570.0,104560.0,0.0651]
[1749931734438,0.99704807,104570.0,104560.0,0.0651]
[1749931734634,1.01876935,104570.0,104560.0,0.0651]
[1749931734843,1.02543123,104570.0,104560.0,0.0651]
[1749931735231,1.01876935,104570.0,104560.0,0.0651]
[1749931735394,1.02543123,104570.0,104560.0,0.0651]
[1749931735599,1.04809063,104570.0,104560.0,0.0651]
[1749931736549,1.04809058,104570.0,104560.0,0.034]
[1749931736946,1.04142875,104570.0,104560.0,0.034]
[1749931737587,1.04809054,104570.0,104560.0,0.034]
[1749931737791,1.04142875,104570.0,104560.0,0.034]
[1749931738029,1.04809054,104570.0,104560.0,0.034]
[1749931738233,1.04142875,104570.0,104560.0,0.034]
[1749931738445,1.04809054,104570.0,104560.0,0.034]
[1749931739099,0.95194132,104570.0,104560.0,0.034]
[1749931739322,0.95194132,104570.0,104560.0,0.0644]
[1749931739521,0.95198132,104570.0,104560.0,0.0644]
[1749931739725,0.95198133,104570.0,104560.0,0.0644]
[1749931740143,0.95198129,104570.0,104560.0,0.0644]
[1749931740520,0.95198128,104570.0,104560.0,0.0644]
[1749931740859,0.95696575,104570.0,104560.0,0.0644]
[1749931741064,0.95198132,104570.0,104560.0,0.0644]
[1749931741265,0.94531953,104570.0,104560.0,0.0644]
[1749931741464,0.95198133,104570.0,104560.0,0.0644]
[1749931741875,0.74147953,104570.0,104560.0,0.0644]
[1749931742190,0.94503953,104570.0,104560.0,0.0644]
[1749931743576,1.04781927,104570.0,104560.0,0.0644]
[1749931744371,0.94503953,104570.0,104560.0,0.0644]
[1749931744740,0.95167005,104570.0,104560.0,0.0644]
[1749931744920,0.94503953,104570.0,104560.0,0.0644]
[1749931745323,0.95167006,104570.0,104560.0,0.0644]
[1749931745529,0.94503953,104570.0,104560.0,0.0644]
[1749931745734,0.95167005,104570.0,104560.0,0.0644]
[1749931745953,0.83762875,104570.0,104560.0,0.0644]
[1749931746211,1.04110875,104570.0,104560.0,0.0644]
[1749931746446,1.04773927,104570.0,104560.0,0.0644]
[1749931746659,1.04110875,104570.0,104560.0,0.0644]
[1749931746872,1.04773927,104570.0,104560.0,0.0644]
[1749931747086,1.04110875,104570.0,104560.0,0.034]
[1749931747294,0.83762875,104570.0,104560.0,0.034]
[1749931747457,0.94503953,104570.0,104560.0,0.0653]
[1749931747809,0.95167007,104570.0,104560.0,0.0653]
[1749931748082,0.73190792,104570.0,104560.0,0.0653]
[1749931748301,0.76029107,104570.0,104560.0,0.0653]
[1749931748515,0.75366053,104570.0,104560.0,0.0653]
[1749931748746,0.95157943,104570.0,104560.0,0.0653]
[1749931749626,0.94494889,104570.0,104560.0,0.0653]
[1749931749844,0.86246939,104570.0,104560.0,0.0653]
[1749931750073,0.86230939,104570.0,104560.0,0.0653]
[1749931750590,0.86234067,104570.0,104560.0,0.0653]
[1749931750775,0.86234086,104570.0,104560.0,0.0653]
[1749931750997,0.86234088,104570.0,104560.0,0.0653]
[1749931751229,0.85567885,104570.0,104560.0,0.0653]
[1749931751443,0.89072398,104570.0,104560.0,0.0653]
[1749931751664,0.884062,104570.0,104560.0,0.0653]
[1749931752130,0.89072402,104570.0,104560.0,0.0653]
[1749931752350,0.89072406,104570.0,104560.0,0.0653]
[1749931752780,0.89072401,104570.0,104560.0,0.0653]
[1749931753005,0.890724,104570.0,104560.0,0.0653]
[1749931753225,0.68732406,104570.0,104560.0,0.0653]
[1749931753447,0.89048406,104570.0,104560.0,0.0653]
[1749931753665,0.89048405,104570.0,104560.0,0.0653]
[1749931754107,0.89048406,104570.0,104560.0,0.0653]
[1749931754324,0.883822,104570.0,104560.0,0.0653]
[1749931754538,0.68732405,104570.0,104560.0,0.0653]
[1749931754771,0.30283758,104570.0,104560.0,0.28526855]
[1749931754997,0.48193927,104570.0,104560.0,0.27570522]
[1749931755213,0.31217682,104570.0,104560.0,0.27570522]
[1749931755456,0.44971761,104570.0,104560.0,0.28526874]
[1749931755702,0.47237701,104570.0,104560.0,0.28526874]
[1749931755946,0.10469092,104570.0,104560.0,0.30439531]
[1749931756163,0.44305419,104570.0,104560.0,0.28526874]
[1749931756579,0.449717,104570.0,104560.0,0.28526874]
[1749931756820,0.47237642,104570.0,104560.0,0.28526874]
[1749931757068,0.46571359,104570.0,104560.0,0.28526874]
[1749931757276,0.10230577,104570.0,104560.0,0.29483207]
[1749931757493,0.23318355,104570.0,104560.0,0.30439531]
[1749931757890,0.07298355,104570.0,104560.0,0.30439531]
[1749931758090,0.06342067,104570.0,104560.0,0.30439531]
[1749931758404,0.06342067,104570.0,104560.0,0.35396441]
[1749931758607,0.05385789,104570.0,104560.0,0.35396441]
[1749931758847,0.05385789,104570.0,104560.0,0.45020617]
[1749931759070,0.06342031,104570.0,104560.0,0.45020617]
[1749931759506,0.07298291,104570.0,104560.0,0.45020617]
[1749931759704,0.07298291,104570.0,104560.0,0.40063707]
[1749931759826,0.08254569,104570.0,104560.0,0.40063707]
[1749931760236,0.07298291,104570.0,104560.0,0.40063707]
[1749931760867,0.04429565,104570.0,104560.0,0.40063707]
[1749931761085,0.04429565,104570.0,104560.0,0.47585034]
[1749931761533,0.06342067,104570.0,104560.0,0.40063707]
[1749931761756,0.04429565,104570.0,104560.0,0.40063707]
[1749931761966,0.05385798,104570.0,104560.0,0.40063707]
[1749931762191,0.04429565,104570.0,104560.0,0.40063707]
[1749931763314,0.05385817,104570.0,104560.0,0.40063707]
[1749931763568,0.0588426,104570.0,104560.0,0.40063707]
[1749931764043,0.04928018,104570.0,104560.0,0.40063707]
[1749931764264,0.05884251,104570.0,104560.0,0.40063707]
[1749931764498,0.03971794,104570.0,104560.0,0.40063707]
[1749931764725,0.00598443,104570.0,104560.0,0.40063707]
[1749931771520,0.02968725,104570.0,104560.0,0.5416704]
[1749931771713,0.03925003,104570.0,104560.0,0.55107364]
[1749931772135,0.2305103,104570.0,104560.0,0.36238337]
[1749931772373,0.22094788,104570.0,104560.0,0.27570522]
[1749931772813,0.22593231,104570.0,104560.0,0.2757054]
[1749931773020,0.22593231,104570.0,104560.0,0.29483271]
[1749931773246,0.21636962,104570.0,104560.0,0.2757054]
[1749931773462,0.20680684,104570.0,104560.0,0.07486388]
[1749931773879,0.19724387,104570.0,104560.0,0.034]
[1749931774324,0.19724387,104570.0,104560.0,0.0663]
[1749931775010,0.19724387,104570.0,104560.0,0.26714152]
[1749931775927,0.19724387,104570.0,104560.0,0.0663]
[1749931776168,0.19724387,104570.0,104560.0,0.07586388]
[1749931776169,0.19225944,104570.0,104560.0,0.07586388]
[1749931776435,0.19225944,104570.0,104560.0,0.0663]
[1749931777855,0.19225944,104570.0,104560.0,0.034]
[1749931778520,0.19724387,104570.0,104560.0,0.034]
[1749931779186,0.19610552,104570.0,104560.0,0.034]
[1749931781438,0.22448867,104570.0,104560.0,0.0654]
[1749931783187,0.22448867,104570.0,104560.0,0.26624152]
[1749931783413,0.23405164,104570.0,104560.0,0.27580513]
[1749931783629,0.24361433,104570.0,104560.0,0.28536865]
[1749931784963,0.24361433,104570.0,104560.0,0.29493207]
[1749931787060,0.0524926,104570.0,104560.0,0.30449531]
[1749931787288,0.04323437,104570.0,104560.0,0.30449531]
[1749931787959,0.05279725,104570.0,104560.0,0.30449531]
[1749931789315,0.04323437,104570.0,104560.0,0.30449531]
[1749931789510,0.05279725,104570.0,104560.0,0.30449531]
[1749931792505,0.05279808,104570.0,104560.0,0.30449531]
[1749931792723,0.2249325,104570.0,104560.0,0.26624152]
[1749931792961,0.33587658,104570.0,104560.0,0.28536883]
[1749931793398,0.33587658,104570.0,104560.0,0.29493235]
[1749931793612,0.25998384,104570.0,104560.0,0.29493235]
[1749931793824,0.25331565,104570.0,104560.0,0.29493235]
[1749931794481,0.25331565,104570.0,104560.0,0.26624152]
[1749931795130,0.25331565,104570.0,104560.0,0.27580522]
[1749931795339,0.24375287,104570.0,104560.0,0.27580522]
[1749931795579,0.23418999,104570.0,104560.0,0.26624152]
[1749931796618,0.23418999,104570.0,104560.0,0.25667773]
[1749931796827,0.23418999,104570.0,104560.0,0.26624161]
[1749931797526,0.2544251,104570.0,104560.0,0.034]
[1749931797739,0.2544251,104570.0,104560.0,0.04356388]
[1749931797941,0.2770845,104570.0,104560.0,0.04356388]
[1749931798623,0.24728642,104570.0,104560.0,0.23484161]
[1749931798837,0.24728642,104570.0,104560.0,0.07546388]
[1749931800343,0.58728642,104570.0,104560.0,0.034]
[1749931800558,0.62513062,104570.0,104560.0,0.034]
[1749931800772,0.65314619,104570.0,104560.0,0.001]
[1749931800996,0.74475993,104570.0,104560.0,0.001]
[1749931801230,0.88583003,104570.0,104560.0,0.0326]
[1749931801445,0.88583003,104570.0,104560.0,0.001]
[1749931801659,0.8924951,104570.0,104560.0,0.001]
[1749931801875,0.91883003,104570.0,104560.0,0.001]
[1749931802764,0.93492259,104570.0,104560.0,0.001]
[1749931802903,0.93492263,104570.0,104560.0,0.001]
[1749931803118,0.9630486,104570.0,104560.0,0.001]
[1749931803314,0.92798923,104570.0,104560.0,0.001]
[1749931803522,0.93464286,104570.0,104560.0,0.001]
[1749931803718,0.96304998,104570.0,104560.0,0.001]
[1749931803918,0.92798923,104570.0,104560.0,0.001]
[1749931804145,0.96304557,104570.0,104560.0,0.001]
[1749931804341,0.96304555,104570.0,104560.0,0.001]
[1749931804514,0.56254187,104570.0,104560.0,0.001]
[1749931804719,0.55588839,104570.0,104560.0,0.001]
[1749931804926,0.55829401,104570.0,104560.0,0.001]
[1749931805350,0.20084152,104560.0,104550.0,0.27380463]
[1749931805546,0.20084152,104560.0,104550.0,0.26424002]
[1749931806029,0.20084152,104560.0,104550.0,0.27380463]
[1749931806248,0.21040513,104560.0,104550.0,0.27380463]
[1749931806461,0.21996855,104560.0,104550.0,0.27380463]
[1749931806669,0.22096855,104560.0,104550.0,0.27880463]
[1749931806877,0.22096855,104560.0,104550.0,0.28836915]
[1749931807150,0.56096855,104560.0,104550.0,0.28836915]
[1749931807334,1.01142873,104560.0,104550.0,0.005]
[1749931807544,1.01142877,104560.0,104550.0,0.005]
[1749931807754,0.97298037,104560.0,104550.0,0.007]
[1749931808189,0.97198075,104560.0,104550.0,0.005]
[1749931808429,0.90102689,104560.0,104550.0,0.005]
[1749931808662,0.9106808,104560.0,104550.0,0.006]
[1749931808875,0.90402689,104560.0,104550.0,0.006]
[1749931809085,0.91068081,104560.0,104550.0,0.006]
[1749931809317,0.90402689,104560.0,104550.0,0.006]
[1749931809525,0.90968095,104560.0,104550.0,0.001]
[1749931809764,0.90968119,104560.0,104550.0,0.002]
[1749931809992,0.5598152,104530.0,104520.0,0.26531662]
[1749931810210,0.56938174,104530.0,104520.0,0.27493161]
[1749931810424,0.55981585,104530.0,104520.0,0.2749317]
[1749931810641,0.55024968,104530.0,104520.0,0.2838942]
[1749931810848,0.55024968,104530.0,104520.0,0.28389432]
[1749931811068,0.55024968,104530.0,104520.0,0.2749317]
[1749931811292,0.55124968,104530.0,104520.0,0.28589432]
[1749931811511,0.61524968,104530.0,104520.0,0.2145317]
[1749931811727,0.64261143,104530.0,104520.0,0.278933]
[1749931811944,0.35463736,104530.0,104520.0,0.29806726]
[1749931812176,0.0125658,104530.0,104520.0,0.30703016]
[1749931812412,0.0125658,104530.0,104520.0,1.01943274]
[1749931812413,0.003,104530.0,104520.0,1.01943274]
[1749931812631,0.001,104530.0,104520.0,1.01743274]
[1749931812851,0.001,104530.0,104520.0,0.66992696]
[1749931813104,0.003,104530.0,104520.0,0.67092696]
[1749931813341,0.36113188,104530.0,104520.0,0.2338661]
[1749931813551,0.55246542,104530.0,104520.0,4.772e-05]
[1749931813749,0.56144985,104530.0,104520.0,0.00304772]
[1749931814013,0.56144985,104530.0,104520.0,0.01202585]
[1749931814014,0.76838168,104530.0,104520.0,0.01202585]
[1749931814225,1.06092726,104530.0,104520.0,0.00304772]
[1749931814434,1.03524649,104530.0,104520.0,0.00104772]
[1749931814647,1.06159207,104530.0,104520.0,4.772e-05]
[1749931814867,1.05492726,104530.0,104520.0,0.00204772]
[1749931815082,1.06259207,104530.0,104520.0,0.00204772]
[1749931815505,1.06259205,104530.0,104520.0,0.00204772]
[1749931815928,1.06259196,104530.0,104520.0,0.00204772]
[1749931816369,0.91924636,104510.0,104500.0,0.15901373]
[1749931816582,1.5499607,104510.0,104500.0,0.15949134]
[1749931816789,1.5499607,104510.0,104500.0,0.11054072]
[1749931816790,1.61696071,104510.0,104500.0,0.11054072]
[1749931817000,1.67534422,104510.0,104500.0,0.11054072]
[1749931817208,1.68799239,104510.0,104500.0,0.11054072]
[1749931817417,1.72570354,104510.0,104500.0,0.11054072]
[1749931817676,0.74095674,104500.0,104490.0,0.00050721]
[1749931817884,1.04285569,104500.0,104490.0,0.00050721]
[1749931818120,1.2146806,104500.0,104490.0,0.00050721]
[1749931818341,1.12781683,104490.0,104480.0,0.0049902]
[1749931818558,1.07446458,104490.0,104480.0,0.0049902]
[1749931818784,1.16140657,104490.0,104480.0,0.0049902]
[1749931819016,1.15474544,104490.0,104480.0,0.0049902]
[1749931819234,1.12311466,104490.0,104480.0,0.0049902]
[1749931819442,1.65623466,104490.0,104480.0,0.0049902]
[1749931819652,1.63448187,104490.0,104480.0,0.0049902]
[1749931819859,1.68448187,104490.0,104480.0,0.0049902]
[1749931820283,1.65623466,104490.0,104480.0,0.0049902]
[1749931820485,1.66023466,104490.0,104480.0,0.0059902]
[1749931821393,1.66523466,104490.0,104480.0,0.0059902]
[1749931821611,1.43211466,104490.0,104480.0,0.0059902]
[1749931821818,1.63678544,104490.0,104480.0,0.0059902]
[1749931822254,0.96366544,104490.0,104480.0,0.0059902]
[1749931822474,0.9586946,104490.0,104480.0,0.21655652]
[1749931822710,1.00074685,104490.0,104480.0,0.24705652]
[1749931822924,0.98160673,104490.0,104480.0,0.0364902]
[1749931823129,1.07775595,104490.0,104480.0,0.0059902]
[1749931824838,1.07775595,104490.0,104480.0,0.20698541]
[1749931825057,1.07763595,104490.0,104480.0,0.20698541]
[1749931825322,0.09885097,104490.0,104480.0,0.28005616]
[1749931825576,0.457991,104490.0,104480.0,0.28962682]
[1749931826059,0.64939623,104490.0,104480.0,0.28962682]
[1749931826297,0.65896652,104490.0,104480.0,0.28005616]
[1749931826776,0.46756056,104490.0,104480.0,0.28962682]
[1749931827018,0.64939687,104490.0,104480.0,0.28005634]
[1749931827269,0.43885042,104490.0,104480.0,0.29919756]
[1749931827501,0.42928086,104490.0,104480.0,0.29919756]
[1749931827973,0.42928086,104490.0,104480.0,0.39543932]
[1749931829155,0.43426529,104490.0,104480.0,0.39543932]
[1749931829398,0.48162094,104490.0,104480.0,0.39543932]
[1749931829619,0.51033071,104490.0,104480.0,0.29919756]
[1749931829842,0.51033062,104490.0,104480.0,0.29919756]
[1749931830303,0.51491639,104490.0,104480.0,0.29919756]
[1749931831462,0.50534619,104490.0,104480.0,0.29919756]
[1749931831699,0.43426529,104490.0,104480.0,0.29919756]
[1749931831934,0.65436752,104490.0,104480.0,0.0676902]
[1749931832168,0.77060928,104490.0,104480.0,0.0363902]
[1749931832424,0.93811079,104490.0,104480.0,0.03293815]
[1749931832649,0.93144928,104490.0,104480.0,0.02395579]
[1749931832881,0.93815048,104490.0,104480.0,0.03293944]
[1749931833131,1.0342597,104490.0,104480.0,0.03293906]
[1749931833358,0.93811055,104490.0,104480.0,0.02395569]
[1749931833589,0.93144928,104490.0,104480.0,0.0059902]
[1749931833821,0.93811062,104490.0,104480.0,0.01497299]
[1749931834056,0.9381106,104490.0,104480.0,0.03293858]
[1749931834316,1.15896557,104490.0,104480.0,0.06503858]
[1749931834541,1.23258293,104490.0,104480.0,0.06503858]
[1749931834770,1.16562659,104490.0,104480.0,0.04707294]
[1749931834996,1.16562661,104490.0,104480.0,0.06503867]
[1749931835222,1.16562661,104490.0,104480.0,0.06503848]
[1749931835223,1.16563536,104490.0,104480.0,0.06503848]
[1749931835427,1.16563535,104490.0,104480.0,0.04707295]
[1749931835654,1.16563535,104490.0,104480.0,0.06503848]
[1749931835860,1.1656355,104490.0,104480.0,0.06503845]
[1749931836070,0.99025467,104490.0,104480.0,0.23849714]
[1749931836281,0.83473296,104490.0,104480.0,0.30670438]
[1749931836494,0.82807146,104490.0,104480.0,0.28873914]
[1749931836719,0.46637548,104490.0,104480.0,0.35663636]
[1749931836945,0.44842016,104490.0,104480.0,0.29889792]
[1749931837155,0.46756019,104490.0,104480.0,0.31686217]
[1749931837362,0.47422221,104490.0,104480.0,0.31686207]
[1749931837570,0.47422221,104490.0,104480.0,0.31686167]
[1749931837571,0.46465224,104490.0,104480.0,0.31686167]
[1749931837777,0.76177743,104490.0,104480.0,0.28932736]
[1749931837990,0.75220785,104490.0,104480.0,0.30729083]
[1749931838205,0.76177814,104490.0,104480.0,0.29889811]
[1749931838418,0.75511601,104490.0,104480.0,0.31686158]
[1749931838672,0.76177816,104490.0,104480.0,0.29889811]
[1749931838878,0.75511601,104490.0,104480.0,0.29889811]
[1749931839085,0.76177817,104490.0,104480.0,0.31686168]
[1749931839306,0.66562891,104490.0,104480.0,0.29889811]
[1749931839522,0.66562894,104490.0,104480.0,0.29889811]
[1749931839731,0.66562893,104490.0,104480.0,0.31686168]
[1749931839947,0.66562891,104490.0,104480.0,0.31686168]
[1749931840172,0.46465275,104490.0,104480.0,0.32643224]
[1749931840381,0.47422282,104490.0,104480.0,0.32643224]
[1749931840634,0.47422284,104490.0,104480.0,0.32643216]
[1749931840867,0.46756064,104490.0,104480.0,0.32643216]
[1749931841087,0.46465224,104490.0,104480.0,0.30846867]
[1749931841299,0.47826478,104490.0,104480.0,0.32543217]
[1749931841513,0.48026479,104490.0,104480.0,0.32643217]
[1749931841738,0.11155567,104490.0,104480.0,0.3264322]
[1749931841969,0.08228086,104490.0,104480.0,0.32643215]
[1749931842193,0.08228086,104490.0,104480.0,0.32643172]
[1749931842423,0.08228086,104490.0,104480.0,0.30846867]
[1749931842631,0.08528086,104490.0,104480.0,0.32735065]
[1749931843045,0.08528086,104490.0,104480.0,0.39530178]
[1749931843269,0.08528086,104490.0,104480.0,0.32735064]
[1749931843483,0.08528086,104490.0,104480.0,0.30946867]
[1749931843697,0.08528086,104490.0,104480.0,0.3273505]
[1749931843914,0.08528086,104490.0,104480.0,0.30946867]
[1749931844127,0.13294229,104490.0,104480.0,0.48811046]
[1749931844345,0.08528086,104490.0,104480.0,0.48807003]
[1749931844615,0.08528086,104490.0,104480.0,0.48807017]
[1749931844816,0.08528086,104490.0,104480.0,0.48807023]
[1749931845025,0.08528086,104490.0,104480.0,0.47018867]
[1749931845234,0.08528086,104490.0,104480.0,0.48807026]
[1749931846083,0.08528086,104490.0,104480.0,0.47018867]
[1749931846527,0.08528086,104490.0,104480.0,0.48807026]
[1749931846963,0.08528086,104490.0,104480.0,0.48815033]
[1749931847187,0.08528086,104490.0,104480.0,0.47026867]
[1749931847394,0.08528086,104490.0,104480.0,0.48815034]
[1749931847607,0.07047185,104500.0,104490.0,0.22011564]
[1749931847816,0.04784485,104500.0,104490.0,0.29919731]
[1749931848030,0.04784485,104500.0,104490.0,0.28131564]
[1749931848283,0.22966376,104500.0,104490.0,0.27174599]
[1749931848508,0.22966376,104500.0,104490.0,0.29919749]
[1749931848714,0.22966376,104500.0,104490.0,0.2991975]
[1749931848924,0.23366376,104500.0,104490.0,0.30976724]
[1749931849141,0.23866376,104500.0,104490.0,0.31076724]
[1749931849577,0.22909494,104500.0,104490.0,0.28213822]
[1749931849824,0.20995683,104500.0,104490.0,0.002]
[1749931850043,1.22571989,104500.0,104490.0,0.002]
[1749931850265,1.29663032,104500.0,104490.0,0.01996432]
[1749931850498,1.2966302,104500.0,104490.0,0.01996432]
[1749931850717,1.33434109,104500.0,104490.0,0.01996432]
[1749931850949,1.39554475,104500.0,104490.0,0.002]
[1749931851173,1.39554475,104500.0,104490.0,0.01996512]
[1749931851174,1.4022064,104500.0,104490.0,0.01996512]
[1749931851415,1.40220624,104500.0,104490.0,0.002]
[1749931851661,1.45229988,104500.0,104490.0,0.002]
[1749931851897,1.21012157,104500.0,104490.0,0.002]
[1749931852218,1.37186718,104500.0,104490.0,0.002]
[1749931852327,1.36536572,104500.0,104490.0,0.002]
[1749931852557,1.35206731,104500.0,104490.0,0.002]
[1749931852791,1.34540572,104500.0,104490.0,0.002]
[1749931853018,1.34540572,104500.0,104490.0,0.0199649]
[1749931853242,1.34540572,104500.0,104490.0,0.002]
[1749931853243,1.14782753,104500.0,104490.0,0.002]
[1749931853510,1.35206753,104500.0,104490.0,0.01996498]
[1749931853731,1.35206753,104500.0,104490.0,0.01996497]
[1749931853732,1.23731494,104500.0,104490.0,0.01996497]
[1749931853947,1.35206753,104500.0,104490.0,0.01996494]
[1749931854165,1.35206753,104500.0,104490.0,0.002]
[1749931854383,1.35206753,104500.0,104490.0,0.01996499]
[1749931854597,1.35206755,104500.0,104490.0,0.002]
[1749931854816,1.34540572,104500.0,104490.0,0.002]
[1749931855029,1.35206755,104500.0,104490.0,0.01996497]
[1749931855240,1.33206754,104500.0,104490.0,0.01996497]
[1749931855465,1.33206756,104500.0,104490.0,0.002]
[1749931855699,0.92615015,104500.0,104490.0,0.01996474]
[1749931855946,0.7116093,104500.0,104490.0,0.28214081]
[1749931856193,0.41913358,104500.0,104490.0,0.27374618]
[1749931856407,0.03312189,104500.0,104490.0,0.310849]
[1749931856615,0.05226,104500.0,104490.0,0.31084841]
[1749931856828,0.05226,104500.0,104490.0,0.3108483]
[1749931857072,0.04269081,104500.0,104490.0,0.31084829]
[1749931857317,0.0331218,104500.0,104490.0,0.29288575]
[1749931857560,0.04825963,104500.0,104490.0,0.29188575]
[1749931857786,0.07362792,104500.0,104490.0,0.29188575]
[1749931858027,0.06405891,104500.0,104490.0,0.29188575]
[1749931858250,0.06705891,104500.0,104490.0,0.31084764]
[1749931858480,0.07662783,104500.0,104490.0,0.31084764]
[1749931858698,0.06705901,104500.0,104490.0,0.31084764]
[1749931858940,0.06705892,104500.0,104490.0,0.29288575]
[1749931859366,0.03869063,104500.0,104490.0,0.31084764]
[1749931859581,0.03869063,104500.0,104490.0,0.31084762]
[1749931859582,0.0291218,104500.0,104490.0,0.31084762]
[1749931860080,0.0291218,104500.0,104490.0,0.31084718]
[1749931860556,0.03869081,104500.0,104490.0,0.29288575]
[1749931860796,0.04826073,104500.0,104490.0,0.31084697]
[1749931861032,0.03869145,104500.0,104490.0,0.31084736]
[1749931861457,0.03869145,104500.0,104490.0,0.31084743]
[1749931861674,0.03869145,104500.0,104490.0,0.31084746]
[1749931861889,0.03869145,104500.0,104490.0,0.29288575]
[1749931862107,0.03869145,104500.0,104490.0,0.3108475]
[1749931862546,0.03869145,104500.0,104490.0,0.29288575]
[1749931862757,0.03869145,104500.0,104490.0,0.31084744]
[1749931862970,0.03869145,104500.0,104490.0,0.31084752]
[1749931863184,0.03869145,104500.0,104490.0,0.31084751]
[1749931863392,0.03869145,104500.0,104490.0,0.31084752]
[1749931863636,0.03869054,104500.0,104490.0,0.31084752]
[1749931863859,0.03869054,104500.0,104490.0,0.29288575]
[1749931864306,0.03869054,104500.0,104490.0,0.26417607]
[1749931864307,0.34336994,104500.0,104490.0,0.26417607]
[1749931864548,0.25844766,104500.0,104490.0,0.25163881]
[1749931864760,0.40481431,104500.0,104490.0,0.22410587]
[1749931864988,0.40481431,104500.0,104490.0,0.26120915]
[1749931865437,0.40481431,104500.0,104490.0,0.24324599]
[1749931865661,0.2229954,104500.0,104490.0,0.30327849]
[1749931865880,0.23256468,104500.0,104490.0,0.30327804]
[1749931866096,0.04327639,104500.0,104490.0,0.30327804]
[1749931866308,0.03370638,104500.0,104490.0,0.28531564]
[1749931866520,0.03370638,104500.0,104490.0,0.30327767]
[1749931866521,0.03869072,104500.0,104490.0,0.30327767]
[1749931866736,0.04825991,104500.0,104490.0,0.30327767]
[1749931866976,0.03869063,104500.0,104490.0,0.3032776]
[1749931867205,0.005,104500.0,104490.0,0.5427174]
[1749931867542,0.005,104500.0,104490.0,1.07655811]
[1749931867764,0.00546114,104510.0,104500.0,1.13787504]
[1749931867986,0.00047671,104510.0,104500.0,1.2341168]
[1749931868198,0.06938703,104520.0,104510.0,0.62217352]
[1749931868409,0.06938703,104520.0,104510.0,1.39569575]
[1749931868625,0.06938703,104520.0,104510.0,1.39574353]
[1749931869049,0.17096406,104550.0,104540.0,0.28211036]
[1749931869050,0.02869265,104550.0,104540.0,0.28211036]
[1749931869257,0.03825717,104550.0,104540.0,0.30006373]
[1749931869465,0.03825717,104550.0,104540.0,0.28211036]
[1749931869893,0.04782178,104550.0,104540.0,0.28211036]
[1749931870725,0.03825726,104550.0,104540.0,0.30006373]
[1749931870959,0.03825726,104550.0,104540.0,0.28211036]
[1749931871180,0.04782197,104550.0,104540.0,0.28211036]
[1749931871387,0.03825726,104550.0,104540.0,0.30006373]